[Event "Titled Tuesday Blitz April 12 Late 2022"]
[White "Abarca Gonzalez, Nicolas"]
[Black "Prohorov, Olexandr"]
[WhiteFideId "3409422"]
[BlackFideId "14105578"]
[WhiteElo "2504"]
[BlackElo "1993"]
[Result "1-0"]
[Round "01"]
[TimeControl "180+1"]
[Date "2022.04.13"]
[WhiteClock "0:00:15"]
[BlackClock "0:00:16"]

1. e4 {[%clk 0:02:41]}  d6 {[%clk 0:02:55]} 2. d4 {[%clk 0:02:41]}  Nf6 {[%clk 0:02:55]} 3. Nc3 {[%clk 0:02:41]}  g6 {[%clk 0:02:56]} 4. Bg5 {[%clk 0:02:41]}  Bg7 {[%clk 0:02:52]} 5. e5 {[%clk 0:02:41]}  Nfd7 {[%clk 0:02:50]} 6. f4 {[%clk 0:02:06]}  h6 {[%clk 0:02:47]} 7. Bh4 {[%clk 0:02:02]}  O-O {[%clk 0:02:45]} 8. Nf3 {[%clk 0:01:37]}  dxe5 {[%clk 0:02:12]} 9. fxe5 {[%clk 0:01:30]}  c5 {[%clk 0:02:09]} 10. e6 {[%clk 0:01:04]}  fxe6 {[%clk 0:02:03]} 11. Bc4 {[%clk 0:01:03]}  Nf6 {[%clk 0:02:02]} 12. dxc5 {[%clk 0:00:57]}  Qc7 {[%clk 0:01:55]} 13. Qe2 {[%clk 0:00:57]}  Qxc5 {[%clk 0:01:43]} 14. Bxe6+ {[%clk 0:00:57]}  Kh7 {[%clk 0:01:42]} 15. O-O-O {[%clk 0:00:53]}  Nc6 {[%clk 0:01:39]} 16. Rhe1 {[%clk 0:00:48]}  Bxe6 {[%clk 0:01:34]} 17. Qxe6 {[%clk 0:00:49]}  b5 {[%clk 0:01:30]} 18. Ne4 {[%clk 0:00:44]}  Nxe4 {[%clk 0:01:20]} 19. Qxe4 {[%clk 0:00:45]}  Rac8 {[%clk 0:01:12]} 20. Kb1 {[%clk 0:00:36]}  Rc7 {[%clk 0:00:54]} 21. c3 {[%clk 0:00:29]}  b4 {[%clk 0:00:54]} 22. Bf2 {[%clk 0:00:29]}  Qb5 {[%clk 0:00:46]} 23. c4 {[%clk 0:00:25]}  Qa4 {[%clk 0:00:38]} 24. Bg3 {[%clk 0:00:18]}  Rcc8 {[%clk 0:00:25]} 25. Ne5 {[%clk 0:00:17]}  Nxe5 {[%clk 0:00:22]} 26. Bxe5 {[%clk 0:00:18]}  b3 {[%clk 0:00:17]} 27. axb3 {[%clk 0:00:16]}  Rf7 {[%clk 0:00:16]} 28. bxa4 {[%clk 0:00:15]} 1-0


[Site "https://www.chess.com"]

[Event "Titled Tuesday Blitz April 12 Late 2022"]
[White "Abdyzhapar, Asylbek"]
[Black "Fernandez Siles, Luis"]
[WhiteFideId "13800337"]
[BlackFideId "2209420"]
[WhiteElo "2331"]
[BlackElo "2212"]
[Result "1-0"]
[Round "01"]
[TimeControl "180+1"]
[Date "2022.04.13"]
[WhiteClock "0:01:20"]
[BlackClock "0:00:13"]

1. e4 {[%clk 0:02:59]}  e5 {[%clk 0:02:58]} 2. Nf3 {[%clk 0:02:58]}  Nf6 {[%clk 0:02:59]} 3. Nc3 {[%clk 0:02:56]}  Nc6 {[%clk 0:02:58]} 4. Bb5 {[%clk 0:02:54]}  Bb4 {[%clk 0:02:57]} 5. O-O {[%clk 0:02:54]}  O-O {[%clk 0:02:56]} 6. d3 {[%clk 0:02:53]}  d6 {[%clk 0:02:53]} 7. Bg5 {[%clk 0:02:51]}  Bxc3 {[%clk 0:02:49]} 8. bxc3 {[%clk 0:02:50]}  Qe7 {[%clk 0:02:48]} 9. h3 {[%clk 0:02:49]}  Nd8 {[%clk 0:02:47]} 10. Re1 {[%clk 0:02:47]}  c6 {[%clk 0:02:45]} 11. Ba4 {[%clk 0:02:46]}  Ne6 {[%clk 0:02:45]} 12. Bh4 {[%clk 0:02:45]}  Nf4 {[%clk 0:02:22]} 13. d4 {[%clk 0:02:42]}  a5 {[%clk 0:02:13]} 14. a3 {[%clk 0:02:38]}  b5 {[%clk 0:01:53]} 15. Bb3 {[%clk 0:02:37]}  a4 {[%clk 0:01:54]} 16. Ba2 {[%clk 0:02:36]}  Be6 {[%clk 0:01:53]} 17. dxe5 {[%clk 0:02:34]}  dxe5 {[%clk 0:01:49]} 18. Nxe5 {[%clk 0:02:13]}  Bxa2 {[%clk 0:01:48]} 19. Nxc6 {[%clk 0:02:13]}  Qc5 {[%clk 0:01:27]} 20. Nd4 {[%clk 0:01:56]}  Be6 {[%clk 0:01:16]} 21. Qf3 {[%clk 0:01:54]}  Ng6 {[%clk 0:01:08]} 22. Bxf6 {[%clk 0:01:54]}  gxf6 {[%clk 0:01:08]} 23. Qxf6 {[%clk 0:01:54]}  Qe5 {[%clk 0:01:08]} 24. Qxe5 {[%clk 0:01:49]}  Nxe5 {[%clk 0:01:08]} 25. f4 {[%clk 0:01:46]}  Nc4 {[%clk 0:01:00]} 26. Nxb5 {[%clk 0:01:45]}  Rab8 {[%clk 0:00:50]} 27. Nd4 {[%clk 0:01:43]}  Rb2 {[%clk 0:00:38]} 28. f5 {[%clk 0:01:40]}  Bd7 {[%clk 0:00:36]} 29. e5 {[%clk 0:01:40]}  Re8 {[%clk 0:00:19]} 30. e6 {[%clk 0:01:40]}  fxe6 {[%clk 0:00:20]} 31. fxe6 {[%clk 0:01:40]}  Bc8 {[%clk 0:00:19]} 32. Re4 {[%clk 0:01:40]}  Rb6 {[%clk 0:00:18]} 33. e7 {[%clk 0:01:31]}  Rb7 {[%clk 0:00:17]} 34. Nc6 {[%clk 0:01:28]}  Bd7 {[%clk 0:00:17]} 35. Rxc4 {[%clk 0:01:27]}  Rc7 {[%clk 0:00:17]} 36. Ne5 {[%clk 0:01:27]}  Rxc4 {[%clk 0:00:17]} 37. Nxc4 {[%clk 0:01:27]}  Rxe7 {[%clk 0:00:18]} 38. Rd1 {[%clk 0:01:26]}  Bc6 {[%clk 0:00:18]} 39. Rd2 {[%clk 0:01:26]}  Re1+ {[%clk 0:00:18]} 40. Kf2 {[%clk 0:01:24]}  Ra1 {[%clk 0:00:18]} 41. Ke3 {[%clk 0:01:23]}  Bb5 {[%clk 0:00:19]} 42. Kd4 {[%clk 0:01:24]}  Bxc4 {[%clk 0:00:19]} 43. Kxc4 {[%clk 0:01:24]}  Rxa3 {[%clk 0:00:20]} 44. Kb4 {[%clk 0:01:24]}  Ra1 {[%clk 0:00:21]} 45. c4 {[%clk 0:01:25]}  a3 {[%clk 0:00:20]} 46. Kb3 {[%clk 0:01:25]}  Kf7 {[%clk 0:00:20]} 47. c5 {[%clk 0:01:24]}  a2 {[%clk 0:00:18]} 48. Kb2 {[%clk 0:01:25]}  Rb1+ {[%clk 0:00:18]} 49. Kxa2 {[%clk 0:01:25]}  Rb5 {[%clk 0:00:18]} 50. c4 {[%clk 0:01:25]}  Rb4 {[%clk 0:00:17]} 51. Rd4 {[%clk 0:01:22]}  Ke6 {[%clk 0:00:17]} 52. Ka3 {[%clk 0:01:21]}  Rb8 {[%clk 0:00:16]} 53. c6 {[%clk 0:01:21]}  Rc8 {[%clk 0:00:16]} 54. Kb4 {[%clk 0:01:21]}  Rxc6 {[%clk 0:00:17]} 55. c5 {[%clk 0:01:22]}  Ke5 {[%clk 0:00:17]} 56. Rd7 {[%clk 0:01:20]}  h6 {[%clk 0:00:16]} 57. Kb5 {[%clk 0:01:20]}  Rc8 {[%clk 0:00:15]} 58. c6 {[%clk 0:01:21]}  Ke6 {[%clk 0:00:14]} 59. Rd2 {[%clk 0:01:20]}  Rc7 {[%clk 0:00:14]} 60. Kb6 {[%clk 0:01:20]}  Rc8 {[%clk 0:00:13]} 61. c7 {[%clk 0:01:20]} 1-0


[Site "https://www.chess.com"]

[Event "Titled Tuesday Blitz April 12 Late 2022"]
[White "Aldokhin, Ivan"]
[Black "Stanisz, Patryk"]
[WhiteFideId "24115720"]
[BlackFideId "1123106"]
[WhiteElo "2231"]
[BlackElo "1833"]
[Result "1-0"]
[Round "01"]
[TimeControl "180+1"]
[Date "2022.04.13"]
[WhiteClock "0:00:53"]
[BlackClock "0:00:05"]

1. e4 {[%clk 0:03:00]}  c5 {[%clk 0:02:59]} 2. Nf3 {[%clk 0:02:59]}  Nc6 {[%clk 0:02:59]} 3. d4 {[%clk 0:03:00]}  cxd4 {[%clk 0:02:59]} 4. Nxd4 {[%clk 0:03:01]}  Nf6 {[%clk 0:02:59]} 5. Nc3 {[%clk 0:03:01]}  e5 {[%clk 0:02:59]} 6. Ndb5 {[%clk 0:03:01]}  d6 {[%clk 0:02:59]} 7. Bg5 {[%clk 0:03:01]}  a6 {[%clk 0:02:59]} 8. Bxf6 {[%clk 0:03:01]}  gxf6 {[%clk 0:02:59]} 9. Na3 {[%clk 0:03:02]}  b5 {[%clk 0:02:59]} 10. Nd5 {[%clk 0:03:02]}  Bg7 {[%clk 0:03:00]} 11. g3 {[%clk 0:03:02]}  Ne7 {[%clk 0:02:57]} 12. Nxe7 {[%clk 0:03:00]}  Qxe7 {[%clk 0:02:57]} 13. c3 {[%clk 0:03:00]}  Bb7 {[%clk 0:02:51]} 14. Bg2 {[%clk 0:03:00]}  f5 {[%clk 0:02:49]} 15. Qe2 {[%clk 0:02:35]}  O-O {[%clk 0:02:44]} 16. O-O {[%clk 0:02:33]}  fxe4 {[%clk 0:02:35]} 17. Bxe4 {[%clk 0:02:33]}  d5 {[%clk 0:02:35]} 18. Bg2 {[%clk 0:02:32]}  Rad8 {[%clk 0:02:30]} 19. Nc2 {[%clk 0:02:28]}  d4 {[%clk 0:02:17]} 20. Nxd4 {[%clk 0:02:08]}  Bxg2 {[%clk 0:02:04]} 21. Kxg2 {[%clk 0:02:07]}  Qb7+ {[%clk 0:02:03]} 22. Nf3 {[%clk 0:02:02]}  e4 {[%clk 0:01:42]} 23. Nh4 {[%clk 0:01:58]}  e3+ {[%clk 0:01:34]} 24. Qf3 {[%clk 0:01:49]}  Qxf3+ {[%clk 0:01:25]} 25. Nxf3 {[%clk 0:01:47]}  Rfe8 {[%clk 0:01:18]} 26. fxe3 {[%clk 0:01:44]}  Rxe3 {[%clk 0:01:17]} 27. Rfe1 {[%clk 0:01:41]}  Red3 {[%clk 0:01:12]} 28. Re2 {[%clk 0:01:36]}  a5 {[%clk 0:01:11]} 29. a4 {[%clk 0:01:33]}  b4 {[%clk 0:01:01]} 30. cxb4 {[%clk 0:01:32]}  axb4 {[%clk 0:01:02]} 31. a5 {[%clk 0:01:33]}  Rd1 {[%clk 0:00:54]} 32. Ra4 {[%clk 0:01:28]}  b3 {[%clk 0:00:50]} 33. Ra3 {[%clk 0:01:02]}  Ra8 {[%clk 0:00:32]} 34. Rxb3 {[%clk 0:01:02]}  Rd5 {[%clk 0:00:24]} 35. a6 {[%clk 0:00:59]}  Rd6 {[%clk 0:00:24]} 36. a7 {[%clk 0:00:59]}  Rd7 {[%clk 0:00:24]} 37. Rb8+ {[%clk 0:00:59]}  Rd8 {[%clk 0:00:24]} 38. Rxd8+ {[%clk 0:00:57]}  Rxd8 {[%clk 0:00:23]} 39. b4 {[%clk 0:00:57]}  Ra8 {[%clk 0:00:12]} 40. Ra2 {[%clk 0:00:57]}  Bf8 {[%clk 0:00:05]} 41. Ne5 {[%clk 0:00:56]}  Bxb4 {[%clk 0:00:05]} 42. Nd7 {[%clk 0:00:53]} 1-0


[Site "https://www.chess.com"]

[Event "Titled Tuesday Blitz April 12 Late 2022"]
[White "Ambartsumova, Karina"]
[Black "Marin Masis, Jose Esteban"]
[WhiteFideId "4166299"]
[BlackFideId "6508146"]
[WhiteElo "2262"]
[BlackElo "1710"]
[Result "1-0"]
[Round "01"]
[TimeControl "180+1"]
[Date "2022.04.13"]
[WhiteClock "0:00:54"]
[BlackClock "0:00:21"]

1. d4 {[%clk 0:02:56]}  Nf6 {[%clk 0:02:58]} 2. Nf3 {[%clk 0:02:56]}  e6 {[%clk 0:02:58]} 3. c4 {[%clk 0:02:56]}  Bb4+ {[%clk 0:02:56]} 4. Nc3 {[%clk 0:02:55]}  O-O {[%clk 0:02:43]} 5. Bg5 {[%clk 0:02:52]}  h6 {[%clk 0:02:41]} 6. Bh4 {[%clk 0:02:52]}  d5 {[%clk 0:02:40]} 7. e3 {[%clk 0:02:50]}  Nbd7 {[%clk 0:02:38]} 8. cxd5 {[%clk 0:02:48]}  exd5 {[%clk 0:02:38]} 9. Bd3 {[%clk 0:02:49]}  c5 {[%clk 0:02:25]} 10. O-O {[%clk 0:02:48]}  c4 {[%clk 0:02:23]} 11. Nxd5 {[%clk 0:02:21]}  cxd3 {[%clk 0:02:15]} 12. Nxb4 {[%clk 0:02:18]}  Qa5 {[%clk 0:02:12]} 13. Nxd3 {[%clk 0:02:14]}  b6 {[%clk 0:02:11]} 14. Nfe5 {[%clk 0:02:09]}  Ba6 {[%clk 0:02:01]} 15. Re1 {[%clk 0:01:58]}  Nxe5 {[%clk 0:01:55]} 16. Nxe5 {[%clk 0:01:59]}  Ne4 {[%clk 0:01:50]} 17. Qg4 {[%clk 0:01:52]}  f5 {[%clk 0:01:33]} 18. Qg6 {[%clk 0:01:51]}  Bb5 {[%clk 0:01:09]} 19. a3 {[%clk 0:01:43]}  Be8 {[%clk 0:01:07]} 20. Qe6+ {[%clk 0:01:42]}  Kh7 {[%clk 0:01:01]} 21. b4 {[%clk 0:01:33]}  Qb5 {[%clk 0:00:48]} 22. Be7 {[%clk 0:01:33]}  Ng5 {[%clk 0:00:35]} 23. Qd6 {[%clk 0:01:05]}  Ne4 {[%clk 0:00:30]} 24. Qe6 {[%clk 0:00:59]}  Ng5 {[%clk 0:00:30]} 25. Bxg5 {[%clk 0:00:57]}  hxg5 {[%clk 0:00:29]} 26. Rac1 {[%clk 0:00:57]}  Rf6 {[%clk 0:00:25]} 27. Qe7 {[%clk 0:00:57]}  Bg6 {[%clk 0:00:23]} 28. Rc7 {[%clk 0:00:55]}  Rg8 {[%clk 0:00:21]} 29. Qxf6 {[%clk 0:00:54]}  Kh6 {[%clk 0:00:21]} 30. Qxg6# {[%clk 0:00:54]} 1-0


[Site "https://www.chess.com"]

[Event "Titled Tuesday Blitz April 12 Late 2022"]
[White "Andreikin, Dmitry"]
[Black "Ozates, Tuna"]
[WhiteFideId "4158814"]
[BlackFideId "6354521"]
[WhiteElo "2736"]
[BlackElo "1887"]
[Result "1-0"]
[Round "01"]
[TimeControl "180+1"]
[Date "2022.04.12"]
[WhiteClock "0:00:22"]
[BlackClock "0:00:02"]

1. d4 {[%clk 0:03:00]}  Nf6 {[%clk 0:02:57]} 2. c4 {[%clk 0:03:00]}  g6 {[%clk 0:02:56]} 3. Nc3 {[%clk 0:03:00]}  Bg7 {[%clk 0:02:55]} 4. e4 {[%clk 0:02:59]}  O-O {[%clk 0:02:56]} 5. Be3 {[%clk 0:02:58]}  d6 {[%clk 0:02:55]} 6. h3 {[%clk 0:02:58]}  Na6 {[%clk 0:02:53]} 7. Bd3 {[%clk 0:02:54]}  e5 {[%clk 0:02:53]} 8. Nf3 {[%clk 0:02:53]}  exd4 {[%clk 0:02:53]} 9. Bxd4 {[%clk 0:02:53]}  Nc5 {[%clk 0:02:52]} 10. O-O {[%clk 0:02:50]}  Re8 {[%clk 0:02:48]} 11. Re1 {[%clk 0:02:46]}  Nfd7 {[%clk 0:02:41]} 12. Bxg7 {[%clk 0:02:44]}  Kxg7 {[%clk 0:02:40]} 13. Bf1 {[%clk 0:02:39]}  Ne5 {[%clk 0:02:39]} 14. b4 {[%clk 0:02:33]}  Nxf3+ {[%clk 0:02:36]} 15. Qxf3 {[%clk 0:02:32]}  Nd7 {[%clk 0:02:36]} 16. Nd5 {[%clk 0:02:28]}  c6 {[%clk 0:02:31]} 17. Qc3+ {[%clk 0:02:27]}  f6 {[%clk 0:02:28]} 18. Nf4 {[%clk 0:02:25]}  Ne5 {[%clk 0:02:26]} 19. Rad1 {[%clk 0:02:25]}  Qe7 {[%clk 0:02:22]} 20. Ne2 {[%clk 0:02:18]}  Bd7 {[%clk 0:02:15]} 21. Ng3 {[%clk 0:02:15]}  Rad8 {[%clk 0:02:14]} 22. Qd4 {[%clk 0:02:13]}  c5 {[%clk 0:02:08]} 23. Qb2 {[%clk 0:02:13]}  b6 {[%clk 0:02:06]} 24. b5 {[%clk 0:02:10]}  Be6 {[%clk 0:02:01]} 25. Qc3 {[%clk 0:02:10]}  h5 {[%clk 0:01:49]} 26. f4 {[%clk 0:02:09]}  Nf7 {[%clk 0:01:49]} 27. Nf5+ {[%clk 0:02:08]}  Bxf5 {[%clk 0:01:47]} 28. exf5 {[%clk 0:02:08]}  Qd7 {[%clk 0:01:44]} 29. fxg6 {[%clk 0:02:08]}  Nh6 {[%clk 0:01:42]} 30. Bd3 {[%clk 0:01:57]}  Rxe1+ {[%clk 0:01:36]} 31. Rxe1 {[%clk 0:01:56]}  Re8 {[%clk 0:01:37]} 32. Kf2 {[%clk 0:01:38]}  Rxe1 {[%clk 0:01:20]} 33. Kxe1 {[%clk 0:01:38]}  d5 {[%clk 0:01:17]} 34. Qc2 {[%clk 0:01:28]}  d4 {[%clk 0:01:13]} 35. Qe2 {[%clk 0:01:27]}  Qc7 {[%clk 0:01:00]} 36. g3 {[%clk 0:01:18]}  h4 {[%clk 0:01:00]} 37. gxh4 {[%clk 0:01:18]}  Qd7 {[%clk 0:00:52]} 38. h5 {[%clk 0:01:14]}  Ng8 {[%clk 0:00:45]} 39. Qf3 {[%clk 0:00:59]}  Qe7+ {[%clk 0:00:36]} 40. Kf2 {[%clk 0:00:59]}  Qd7 {[%clk 0:00:34]} 41. a4 {[%clk 0:00:56]}  Qc7 {[%clk 0:00:24]} 42. Qe4 {[%clk 0:00:52]}  Nh6 {[%clk 0:00:20]} 43. Kg3 {[%clk 0:00:52]}  Ng8 {[%clk 0:00:20]} 44. Qe6 {[%clk 0:00:49]}  Nh6 {[%clk 0:00:20]} 45. Kf3 {[%clk 0:00:48]}  Qd8 {[%clk 0:00:17]} 46. Be4 {[%clk 0:00:47]}  Qc7 {[%clk 0:00:17]} 47. Bd5 {[%clk 0:00:45]}  d3 {[%clk 0:00:17]} 48. Ke3 {[%clk 0:00:26]}  d2 {[%clk 0:00:17]} 49. Ke2 {[%clk 0:00:27]}  Qd8 {[%clk 0:00:02]} 50. Kxd2 {[%clk 0:00:27]}  Qc7 {[%clk 0:00:03]} 51. Ke3 {[%clk 0:00:26]}  Qd8 {[%clk 0:00:03]} 52. Kf3 {[%clk 0:00:24]}  Qc7 {[%clk 0:00:04]} 53. Qc6 {[%clk 0:00:24]}  Qe7 {[%clk 0:00:04]} 54. Be6 {[%clk 0:00:23]}  Qd8 {[%clk 0:00:03]} 55. Qb7+ {[%clk 0:00:23]}  Kf8 {[%clk 0:00:01]} 56. g7+ {[%clk 0:00:23]}  Ke8 {[%clk 0:00:02]} 57. g8=R+ {[%clk 0:00:22]}  Nxg8 {[%clk 0:00:02]} 58. Qf7# {[%clk 0:00:22]} 1-0


[Site "https://www.chess.com"]

[Event "Titled Tuesday Blitz April 12 Late 2022"]
[White "Artemiev, Vladislav"]
[Black "Shapiro, David"]
[WhiteFideId "24101605"]
[BlackFideId "24133523"]
[WhiteElo "2811"]
[BlackElo "2320"]
[Result "1-0"]
[Round "01"]
[TimeControl "180+1"]
[Date "2022.04.12"]
[WhiteClock "0:00:06"]
[BlackClock "0:00:03"]

1. Nf3 {[%clk 0:03:00]}  d5 {[%clk 0:02:56]} 2. g3 {[%clk 0:02:59]}  Nf6 {[%clk 0:02:55]} 3. Bg2 {[%clk 0:03:00]}  c6 {[%clk 0:02:56]} 4. O-O {[%clk 0:02:59]}  Bg4 {[%clk 0:02:56]} 5. c4 {[%clk 0:02:59]}  e6 {[%clk 0:02:56]} 6. cxd5 {[%clk 0:02:59]}  exd5 {[%clk 0:02:57]} 7. d3 {[%clk 0:02:54]}  Be7 {[%clk 0:02:57]} 8. Qb3 {[%clk 0:02:51]}  Qb6 {[%clk 0:02:45]} 9. Qc2 {[%clk 0:02:51]}  O-O {[%clk 0:02:43]} 10. h3 {[%clk 0:02:49]}  Bh5 {[%clk 0:02:43]} 11. Nc3 {[%clk 0:02:48]}  Nbd7 {[%clk 0:02:41]} 12. e4 {[%clk 0:02:44]}  dxe4 {[%clk 0:02:40]} 13. dxe4 {[%clk 0:02:44]}  Bg6 {[%clk 0:02:40]} 14. Nh4 {[%clk 0:02:40]}  Rad8 {[%clk 0:02:33]} 15. Be3 {[%clk 0:02:39]}  Qc7 {[%clk 0:02:29]} 16. f4 {[%clk 0:02:07]}  Nh5 {[%clk 0:02:06]} 17. Nxg6 {[%clk 0:01:47]}  hxg6 {[%clk 0:02:06]} 18. g4 {[%clk 0:01:31]}  Nhf6 {[%clk 0:01:42]} 19. e5 {[%clk 0:01:30]}  Ne8 {[%clk 0:01:37]} 20. Ne4 {[%clk 0:01:03]}  Nb6 {[%clk 0:01:35]} 21. Rad1 {[%clk 0:00:55]}  Nd5 {[%clk 0:01:31]} 22. Bc1 {[%clk 0:00:55]}  Qb6+ {[%clk 0:01:29]} 23. Qf2 {[%clk 0:00:49]}  Nec7 {[%clk 0:01:16]} 24. Qxb6 {[%clk 0:00:39]}  axb6 {[%clk 0:01:17]} 25. f5 {[%clk 0:00:39]}  gxf5 {[%clk 0:01:16]} 26. gxf5 {[%clk 0:00:40]}  Rfe8 {[%clk 0:01:16]} 27. f6 {[%clk 0:00:30]}  Bf8 {[%clk 0:01:13]} 28. fxg7 {[%clk 0:00:30]}  Bxg7 {[%clk 0:01:14]} 29. Nd6 {[%clk 0:00:30]}  Re7 {[%clk 0:01:02]} 30. Bg5 {[%clk 0:00:30]}  Rdd7 {[%clk 0:00:40]} 31. Bxe7 {[%clk 0:00:25]}  Rxe7 {[%clk 0:00:41]} 32. Rde1 {[%clk 0:00:14]}  Rxe5 {[%clk 0:00:31]} 33. Rxe5 {[%clk 0:00:12]}  Bxe5 {[%clk 0:00:32]} 34. Nxf7 {[%clk 0:00:12]}  Bxb2 {[%clk 0:00:31]} 35. Nd8 {[%clk 0:00:10]}  Bd4+ {[%clk 0:00:22]} 36. Kh1 {[%clk 0:00:10]}  Ne3 {[%clk 0:00:20]} 37. Rf4 {[%clk 0:00:08]}  Be5 {[%clk 0:00:18]} 38. Re4 {[%clk 0:00:08]}  Bf6 {[%clk 0:00:09]} 39. Nxb7 {[%clk 0:00:05]}  Nxg2 {[%clk 0:00:08]} 40. Kxg2 {[%clk 0:00:06]}  c5 {[%clk 0:00:09]} 41. Nd6 {[%clk 0:00:05]}  Nd5 {[%clk 0:00:06]} 42. Kf3 {[%clk 0:00:03]}  Bd4 {[%clk 0:00:07]} 43. Rg4+ {[%clk 0:00:03]}  Kf8 {[%clk 0:00:06]} 44. Nf5 {[%clk 0:00:04]}  Bf6 {[%clk 0:00:06]} 45. Ne3 {[%clk 0:00:04]}  Ne7 {[%clk 0:00:03]} 46. Rf4 {[%clk 0:00:04]}  Kg7 {[%clk 0:00:04]} 47. Nf5+ {[%clk 0:00:04]}  Nxf5 {[%clk 0:00:03]} 48. Rxf5 {[%clk 0:00:05]}  Kg6 {[%clk 0:00:03]} 49. Ke4 {[%clk 0:00:05]}  c4 {[%clk 0:00:03]} 50. Rb5 {[%clk 0:00:05]}  c3 {[%clk 0:00:02]} 51. Rxb6 {[%clk 0:00:05]}  c2 {[%clk 0:00:02]} 52. Rc6 {[%clk 0:00:05]}  Kg5 {[%clk 0:00:03]} 53. Rxc2 {[%clk 0:00:05]}  Kh4 {[%clk 0:00:03]} 54. a4 {[%clk 0:00:06]}  Kxh3 {[%clk 0:00:03]} 55. a5 {[%clk 0:00:06]} 1-0


[Site "https://www.chess.com"]

[Event "Titled Tuesday Blitz April 12 Late 2022"]
[White "Begmuratov, Khumoyun"]
[Black "Bernat, David"]
[WhiteFideId "14210207"]
[BlackFideId "2099225"]
[WhiteElo "1961"]
[BlackElo "2300"]
[Result "1-0"]
[Round "01"]
[TimeControl "180+1"]
[Date "2022.04.13"]
[WhiteClock "0:01:06"]
[BlackClock "0:00:18"]

1. e4 {[%clk 0:03:00]}  c5 {[%clk 0:02:59]} 2. Nf3 {[%clk 0:03:00]}  g6 {[%clk 0:02:52]} 3. g3 {[%clk 0:02:57]}  Bg7 {[%clk 0:02:50]} 4. Bg2 {[%clk 0:02:57]}  Nc6 {[%clk 0:02:51]} 5. O-O {[%clk 0:02:57]}  d6 {[%clk 0:02:51]} 6. c3 {[%clk 0:02:56]}  e5 {[%clk 0:02:51]} 7. d3 {[%clk 0:02:55]}  Nge7 {[%clk 0:02:51]} 8. a3 {[%clk 0:02:54]}  O-O {[%clk 0:02:50]} 9. b4 {[%clk 0:02:54]}  a6 {[%clk 0:02:51]} 10. Nbd2 {[%clk 0:02:53]}  h6 {[%clk 0:02:49]} 11. Nb3 {[%clk 0:02:48]}  Be6 {[%clk 0:02:50]} 12. bxc5 {[%clk 0:02:47]}  Bxb3 {[%clk 0:02:36]} 13. Qxb3 {[%clk 0:02:47]}  dxc5 {[%clk 0:02:37]} 14. Qxb7 {[%clk 0:02:32]}  Qxd3 {[%clk 0:02:33]} 15. Qb2 {[%clk 0:02:13]}  Rab8 {[%clk 0:02:26]} 16. Qd2 {[%clk 0:02:12]}  Rfd8 {[%clk 0:02:16]} 17. Qe3 {[%clk 0:01:55]}  Na5 {[%clk 0:01:59]} 18. Qxc5 {[%clk 0:01:29]}  Nb3 {[%clk 0:01:58]} 19. Qxe7 {[%clk 0:01:29]}  Nxa1 {[%clk 0:01:59]} 20. Nxe5 {[%clk 0:01:30]}  Bxe5 {[%clk 0:01:50]} 21. Qxe5 {[%clk 0:01:29]}  Rb5 {[%clk 0:01:06]} 22. Qe7 {[%clk 0:01:25]}  Qd7 {[%clk 0:01:01]} 23. Qf6 {[%clk 0:01:18]}  Qd6 {[%clk 0:00:53]} 24. Qxd6 {[%clk 0:01:18]}  Rxd6 {[%clk 0:00:53]} 25. Bf4 {[%clk 0:01:19]}  Rc6 {[%clk 0:00:45]} 26. Rxa1 {[%clk 0:01:16]}  g5 {[%clk 0:00:45]} 27. Be3 {[%clk 0:01:13]}  Rxc3 {[%clk 0:00:44]} 28. Bf1 {[%clk 0:01:12]}  Rb8 {[%clk 0:00:40]} 29. Bxa6 {[%clk 0:01:11]}  Ra8 {[%clk 0:00:40]} 30. Bb7 {[%clk 0:01:10]}  Raxa3 {[%clk 0:00:37]} 31. Rd1 {[%clk 0:01:11]}  Rd3 {[%clk 0:00:26]} 32. Re1 {[%clk 0:01:08]}  Rd7 {[%clk 0:00:20]} 33. Bc8 {[%clk 0:01:08]}  Rd8 {[%clk 0:00:20]} 34. Bf5 {[%clk 0:01:09]}  Rad3 {[%clk 0:00:20]} 35. Kg2 {[%clk 0:01:09]}  Rd1 {[%clk 0:00:20]} 36. Re2 {[%clk 0:01:09]}  Kg7 {[%clk 0:00:20]} 37. Rb2 {[%clk 0:01:09]}  R1d6 {[%clk 0:00:20]} 38. Rb7 {[%clk 0:01:08]}  Kf6 {[%clk 0:00:20]} 39. Bc1 {[%clk 0:01:07]}  Kg7 {[%clk 0:00:19]} 40. Bb2+ {[%clk 0:01:07]}  Kg8 {[%clk 0:00:19]} 41. e5 {[%clk 0:01:05]}  Rd2 {[%clk 0:00:19]} 42. e6 {[%clk 0:01:05]}  fxe6 {[%clk 0:00:16]} 43. Bh7+ {[%clk 0:01:05]}  Kf8 {[%clk 0:00:17]} 44. Bg7+ {[%clk 0:01:05]}  Ke8 {[%clk 0:00:18]} 45. Bg6# {[%clk 0:01:06]} 1-0


[Site "https://www.chess.com"]